bitfinex/quotes_ETHUSD_20251025
["timestamp","ask_amount","ask_price","bid_price","bid_amount"]
[1761418573488,0.88288291,3956.5,3956.2,0.002]
[1761418574022,3.41039283,3956.5,3956.2,0.002]
[1761418575220,2.52756397,3956.4,3956.2,0.002]
[1761418575607,3.51057003,3956.5,3956.2,0.002]
[1761418575911,3.4987336,3956.4,3956.2,0.002]
[1761418576821,3.5989336,3956.4,3956.2,0.002]
[1761418577423,3.4987336,3956.4,3956.2,0.002]
[1761418577593,2.52761418,3956.3,3956.2,0.002]
[1761418577784,2.62781418,3956.3,3956.2,0.002]
[1761418577987,3.24046155,3956.3,3956.2,0.002]
[1761418583149,2.62787807,3956.2,3955.9,0.0904]
[1761418585448,2.52767807,3956.2,3955.9,0.0904]
[1761418589556,0.2266,3956.4,3955.8,0.002]
[1761418589757,2.52772468,3956.2,3955.8,0.1284]
[1761418591530,2.52772468,3956.2,3955.8,0.5683]
[1761418593869,2.52774362,3956.1,3955.8,0.5683]
[1761418594730,2.52770011,3956.2,3955.8,0.5683]
[1761418600084,2.52776392,3956.1,3955.8,0.5683]
[1761418601183,2.52776392,3956.1,3955.8,0.1284]
[1761418607498,2.52769793,3956.2,3955.8,0.1284]
[1761418607664,2.52774647,3956.1,3955.8,0.1284]
[1761418609705,2.52869472,3956.2,3955.8,0.1284]
[1761418609862,2.52869472,3956.2,3955.8,0.5633]
[1761418612806,0.001,3956.2,3955.8,0.5633]
[1761418613007,2.5286802,3956.2,3955.8,0.5633]
[1761418613614,2.5286802,3956.2,3955.9,0.4349]
[1761418615210,0.001,3956.2,3956.1,2.52774196]
[1761418615399,0.001,3956.2,3956.1,2.76454196]
[1761418615701,0.001,3956.2,3956.1,4.75464196]
[1761418616072,0.001,3956.2,3956.1,4.85578909]
[1761418616279,0.001,3956.2,3956.1,5.96556689]
[1761418616707,0.001,3956.2,3956.1,6.47244689]
[1761418625324,0.001,3956.2,3956.1,6.59884689]
[1761418630737,0.001,3956.2,3956.1,6.8714949]
[1761418631205,0.001,3956.2,3956.1,6.85164689]
[1761418631406,0.001,3956.2,3956.1,10.7103222]
[1761418631800,0.001,3956.2,3956.1,6.47244689]
[1761418636344,0.001,3956.2,3956.1,6.47244689]
[1761418636831,0.001,3956.2,3956.1,10.00033297]
[1761418641917,0.001,3956.2,3956.1,10.12673297]
[1761418644613,0.001,3956.2,3956.1,6.16394689]
[1761418644952,0.001,3956.2,3956.1,10.12853297]
[1761418657068,0.001,3956.2,3956.1,6.7468949]
[1761418657254,0.001,3956.3,3956.2,4.58975807]
[1761418657562,0.001,3956.3,3956.2,16.70374844]
[1761418657763,0.001,3956.3,3956.2,16.67847166]
[1761418657933,0.001,3956.3,3956.2,16.77958351]
[1761418658330,0.001,3956.3,3956.2,17.71995391]
[1761418659949,0.001,3956.3,3956.2,17.17221837]
[1761418661263,0.001,3956.3,3956.2,15.37775703]
[1761418662043,0.001,3956.3,3956.2,19.24775703]
[1761418662246,0.001,3956.6,3956.5,4.58956641]
[1761418662446,0.001,3956.6,3956.5,9.97235486]
[1761418662669,0.001,3956.6,3956.5,10.42118]
[1761418663034,0.001,3956.6,3956.5,10.52229185]
[1761418663650,0.001,3956.6,3956.5,14.05017793]
[1761418667138,0.001,3956.6,3956.5,14.17657793]
[1761418668167,0.001,3956.6,3956.5,18.04657793]
[1761418679691,0.001,3956.6,3956.5,19.56357793]
[1761418679878,0.001,3956.6,3956.5,18.04657793]
[1761418686384,0.001,3956.6,3956.5,17.57247793]
[1761418687018,0.001,3956.6,3956.5,18.02547793]
[1761418687203,0.001,3956.6,3956.5,19.81993927]
[1761418693830,0.001,3956.6,3956.5,17.57247793]
[1761418698743,0.001,3956.6,3956.5,18.15210976]
[1761418700361,0.001,3956.6,3956.5,18.58980976]
[1761418701356,0.001,3956.6,3956.5,20.3842711]
[1761418704722,0.001,3956.6,3956.5,16.0765711]
[1761418705042,0.001,3956.6,3956.5,16.5142711]
[1761418709973,0.001,3956.6,3956.5,18.0302711]
[1761418710179,0.001,3956.6,3956.5,16.5142711]
[1761418712974,0.001,3956.6,3956.5,14.71980976]
[1761418718060,0.001,3956.6,3956.5,14.28210976]
[1761418719395,0.001,3956.6,3956.5,14.73230976]
[1761418722197,1e-08,3956.9,3956.8,3.03417478]
[1761418722397,1e-08,3956.9,3956.8,9.63621523]
[1761418722703,1e-08,3956.9,3956.8,9.76261523]
[1761418723008,1e-08,3956.9,3956.8,9.86371711]
[1761418730410,1e-08,3956.9,3956.8,13.73371711]
[1761418730904,1e-08,3956.9,3956.8,10.55571711]
[1761418731104,1e-08,3956.9,3956.8,13.73371711]
[1761418734718,0.00100001,3956.9,3956.8,13.73371711]
[1761418736612,0.00100001,3956.9,3956.8,14.18391711]
[1761418739806,0.00100001,3956.9,3956.8,10.31391711]
[1761418741108,0.00100001,3956.9,3956.8,12.11156026]
[1761418744238,0.001,3957.3,3957.2,4.58911932]
[1761418744438,0.001,3957.3,3957.2,12.78794587]
[1761418744633,0.001,3957.3,3957.2,12.91434587]
[1761418744935,0.001,3957.3,3957.2,13.01544315]
[1761418753786,0.001,3958.1,3957.8,2.52665622]
[1761418753948,0.001,3958.1,3958.0,3.03340854]
[1761418754287,0.001,3958.1,3958.0,4.71500854]
[1761418754576,0.1,3958.1,3958.0,8.09860854]
[1761418755364,0.90928332,3960.5,3958.8,1.516]
[1761418755555,0.90928332,3960.5,3960.4,4.58707747]
[1761418755756,1.81045466,3961.3,3960.5,4.58701372]
[1761418757389,2.39863666,3961.9,3960.5,4.58701372]
[1761418757556,0.1187,3961.9,3960.5,4.58701372]
[1761418758165,2.64274445,3961.9,3960.5,4.58701372]
[1761418758379,0.1187,3961.9,3960.5,4.58701372]
[1761418758567,2.64279517,3961.9,3960.5,4.58701372]
[1761418758771,2.64274913,3961.9,3960.5,4.58701372]
[1761418759405,2.52411216,3961.8,3960.5,4.58701372]
[1761418760207,2.52418133,3961.7,3960.5,4.58701372]
[1761418761406,2.52423574,3961.6,3960.5,4.58701372]
[1761418761608,2.52423574,3961.6,3960.5,7.78201372]
[1761418762488,2.5242337,3961.6,3960.5,7.78201372]
[1761418763905,2.52430122,3961.5,3960.5,7.78201372]
[1761418765627,3.28193621,3961.6,3960.5,7.90841372]
[1761418765789,3.28193621,3961.6,3960.5,9.02752495]
[1761418766687,0.75770108,3961.6,3960.5,9.02752495]
[1761418769319,3.28194504,3961.6,3960.5,9.02752495]
[1761418770118,0.75770108,3961.6,3960.5,9.02752495]
[1761418770491,2.65057247,3961.7,3960.5,9.02752495]
[1761418770720,0.75770108,3961.5,3960.5,9.02752495]
[1761418771830,0.001,3961.0,3960.5,9.02752495]
[1761418784345,0.001,3961.0,3960.5,7.90841372]
[1761418788161,0.001,3961.0,3960.5,3.15821372]
[1761418788360,0.001,3961.0,3960.5,3.186]
[1761418788361,2.52562564,3961.0,3960.5,3.186]
[1761418788560,0.001,3961.0,3960.5,3.186]
[1761418788765,2.52562089,3961.0,3960.5,3.186]
[1761418789111,2.52562089,3961.0,3960.5,4.7412]
[1761418791201,0.001,3961.0,3960.5,4.7412]
[1761418791406,2.52474334,3960.8,3960.5,4.7412]
[1761418792115,0.001,3961.0,3960.5,4.7412]
[1761418792116,2.53469227,3960.9,3960.5,4.7412]
[1761418792838,2.52476495,3960.8,3960.5,4.7412]
[1761418793635,2.53468358,3960.9,3960.5,4.7412]
[1761418796446,2.53468589,3960.9,3960.5,4.7412]
[1761418797147,2.53468589,3960.9,3960.5,1.5552]
[1761418797445,2.52475814,3960.8,3960.5,4.7422]
[1761418797838,2.53468344,3960.9,3960.5,4.7422]
[1761418798413,0.2089,3960.6,3960.5,4.7422]
[1761418799517,0.48326573,3960.6,3960.5,1.5552]
[1761418799717,0.48326573,3960.6,3960.5,4.7412]
[1761418799920,3.00813569,3960.6,3960.5,3.186]
[1761418800153,3.13453569,3960.6,3960.5,3.186]
[1761418800956,2.52506391,3960.3,3960.1,0.002]
[1761418801162,0.56595996,3960.3,3960.2,3.186]
[1761418801343,2.52501156,3960.4,3960.2,3.186]
[1761418801344,2.52501536,3960.4,3960.2,3.186]
[1761418801553,0.099,3960.3,3960.2,3.186]
[1761418802062,3.0355553,3960.6,3960.2,3.186]
[1761418802558,3.52128802,3960.4,3960.1,0.002]
[1761418802727,2.92556404,3960.3,3960.1,0.002]
[1761418802931,2.52493372,3960.5,3960.1,0.002]
[1761418803131,2.62393372,3960.5,3960.1,0.002]
[1761418803334,0.099,3960.5,3960.1,0.002]
[1761418803542,0.099,3960.4,3960.1,0.002]
[1761418803864,0.1099,3960.6,3960.1,0.002]
[1761418804637,0.1099,3960.6,3960.1,2.52713868]
[1761418804836,0.1099,3960.6,3960.2,0.4711]
[1761418805247,0.1099,3960.6,3960.2,2.99622403]
[1761418805452,0.001,3960.6,3960.3,0.4711]
[1761418805762,0.001,3960.6,3960.5,4.08013372]
[1761418806265,0.001,3960.6,3960.5,4.55123372]
[1761418806618,0.001,3960.6,3960.5,1.5552]
[1761418806824,0.001,3960.6,3960.1,0.002]
[1761418807069,0.001,3960.6,3960.2,2.013]
[1761418807468,0.001,3960.6,3960.3,1.5552]
[1761418807621,0.001,3960.6,3960.2,3.5682]
[1761418807859,0.001,3960.6,3960.3,1.5552]
[1761418808059,0.001,3960.6,3960.5,1.5552]
[1761418810497,0.1098,3960.6,3960.5,1.5552]
[1761418811616,0.1098,3960.6,3960.5,4.7442]
[1761418811965,0.1098,3960.6,3960.5,4.7432]
[1761418813487,0.001,3960.6,3960.5,1.5552]
[1761418813686,0.001,3960.6,3960.5,4.7432]
[1761418814370,2.52506045,3960.4,3960.1,0.002]
[1761418814571,2.89914756,3960.6,3960.1,0.002]
[1761418814572,2.52512499,3960.2,3960.1,0.002]
[1761418814987,2.63392499,3960.2,3960.1,0.002]
[1761418819971,6.15521301,3960.2,3960.1,0.002]
[1761418822495,9.34321301,3960.2,3960.1,0.002]
[1761418822802,7.00875049,3960.2,3960.1,0.002]
[1761418824710,7.13515049,3960.2,3960.1,0.002]
[1761418825918,7.23624675,3960.2,3960.1,0.002]
[1761418828685,8.79144675,3960.2,3960.1,0.002]
[1761418829903,15.68832675,3960.2,3960.1,0.002]
[1761418830693,16.23082659,3960.2,3960.1,0.002]
[1761418832228,18.88982659,3960.2,3960.1,0.002]
[1761418832415,16.23082659,3960.2,3960.1,0.002]
[1761418838829,4.08051629,3959.9,3959.8,1e-08]
[1761418838997,8.80567611,3959.9,3959.8,1e-08]
[1761418839194,9.04087611,3959.9,3959.8,1e-08]
[1761418839615,9.1419785,3959.9,3959.8,1e-08]
[1761418840219,15.5319785,3959.9,3959.8,1e-08]
[1761418840431,16.07468011,3959.9,3959.8,1e-08]
[1761418846813,16.0761887,3959.9,3959.8,1e-08]
[1761418848638,16.75645145,3959.9,3959.8,1e-08]
[1761418848843,16.5830687,3959.9,3959.8,1e-08]
[1761418849507,2.52576278,3959.2,3959.1,1e-08]
[1761418849707,10.6126564,3959.2,3959.1,1e-08]
[1761418849909,10.7214564,3959.2,3959.1,1e-08]
[1761418850138,10.6126564,3959.2,3959.1,1e-08]
[1761418850346,11.0775564,3959.2,3959.1,1e-08]
[1761418854921,11.1863564,3959.2,3959.1,1e-08]
[1761418855956,13.42245119,3959.2,3959.1,1e-08]
[1761418856256,12.7415564,3959.2,3959.1,1e-08]
[1761418857322,13.42231347,3959.2,3959.1,1e-08]
[1761418857554,13.42231347,3959.2,3959.1,0.00200001]
[1761418858160,2.52640088,3958.2,3958.1,0.2287]
[1761418858467,5.71040088,3958.2,3958.1,0.01]
[1761418858627,5.71040088,3958.2,3958.1,0.4749]
[1761418858828,6.17530088,3958.2,3958.1,0.4749]
[1761418859058,7.45607361,3958.2,3958.1,0.4749]
[1761418859362,7.45607361,3958.2,3958.1,0.01]
[1761418859534,7.58247361,3958.2,3958.1,0.01]
[1761418861657,7.58247361,3958.2,3958.1,0.4453]
[1761418861838,7.58247361,3958.2,3958.1,0.6739]
[1761418865361,7.58247361,3958.2,3958.1,0.01]
[1761418866428,7.11757361,3958.2,3958.1,0.01]
[1761418875461,2.52703932,3957.2,3957.1,0.012]
[1761418875763,9.81514646,3957.2,3957.1,0.012]
[1761418876366,9.81514646,3957.2,3957.1,0.4823]
[1761418880396,9.81514646,3957.2,3957.1,0.012]
[1761418880694,9.81514646,3957.2,3957.1,0.4823]
[1761418880991,10.74939568,3957.2,3957.1,0.4823]
[1761418881567,10.74939568,3957.2,3957.1,0.012]
[1761418884194,2.52729478,3956.8,3955.0,0.2286]
[1761418884394,5.71029478,3956.8,3956.2,0.4703]
[1761418884595,6.29220426,3956.8,3956.2,0.4703]
[1761418884786,9.82426575,3956.8,3955.0,0.2286]
[1761418884986,9.82426575,3956.8,3955.9,0.4723]
[1761418885186,9.93306575,3956.8,3955.9,0.002]
[1761418885395,9.95066575,3956.8,3956.0,0.6986]
[1761418885609,9.95066575,3956.8,3956.1,0.4823]
[1761418886383,9.82426575,3956.8,3956.1,0.4823]
[1761418886782,9.93306575,3956.8,3956.1,0.4823]
[1761418886991,11.88634575,3956.8,3956.1,0.012]
[1761418887310,9.2225572,3956.8,3956.2,0.4703]
[1761418887494,9.2225572,3956.8,3956.1,0.2465]
[1761418887495,12.4065572,3956.8,3956.5,0.4703]
[1761418887678,11.9242572,3956.8,3956.7,0.4723]
[1761418887879,11.9242572,3956.8,3956.7,0.002]
[1761418892310,11.92355076,3956.8,3956.7,0.002]
[1761418892610,11.38046575,3956.8,3956.7,0.002]
[1761418896308,4.08255865,3956.7,3956.6,1e-08]
[1761418896512,4.9078219,3956.7,3956.6,1e-08]
[1761418897489,5.45096182,3956.7,3956.6,1e-08]
[1761418898300,5.69746182,3956.7,3956.6,1e-08]
[1761418898893,4.08275029,3956.4,3956.3,0.002]
[1761418899122,4.08275029,3956.4,3956.1,1e-08]
[1761418899123,2.52767807,3956.2,3956.1,1e-08]
[1761418899325,4.20927807,3956.2,3956.1,1e-08]
[1761418900517,4.31807807,3956.2,3956.1,1e-08]
[1761418904299,4.8619009,3956.2,3956.1,1e-08]
[1761418904499,2.52786976,3955.9,3955.8,1e-08]
[1761418904695,14.45959274,3955.9,3955.8,1e-08]
[1761418905315,15.00364793,3955.9,3955.8,1e-08]
[1761418905731,15.11244793,3955.9,3955.8,1e-08]
[1761418906113,11.47158644,3955.9,3955.8,1e-08]
[1761418906309,12.05349592,3955.9,3955.8,1e-08]
[1761418913030,14.71249592,3955.9,3955.8,1e-08]
[1761418913229,12.05349592,3955.9,3955.8,1e-08]
[1761418917520,12.05349592,3955.9,3955.8,0.46410001]
[1761418917725,12.05349592,3955.9,3955.8,1e-08]
[1761418922754,8.86749592,3955.9,3955.8,1e-08]
[1761418923044,12.05149592,3955.9,3955.8,1e-08]
[1761418924146,12.55837592,3955.9,3955.8,1e-08]
[1761418924350,12.99557592,3955.9,3955.8,1e-08]
[1761418924550,13.67443218,3955.9,3955.8,1e-08]
[1761418925552,17.20649367,3955.9,3955.8,1e-08]
[1761418926429,16.19923741,3955.9,3955.8,1e-08]
[1761418927252,16.19923741,3955.9,3955.4,0.002]
[1761418927253,16.99787054,3955.9,3955.4,0.002]
[1761418927459,16.99787054,3955.9,3955.0,0.2306]
[1761418927460,4.08358107,3955.1,3955.0,0.002]
[1761418927754,7.81163626,3955.1,3955.0,0.002]
[1761418929224,5.13451626,3955.1,3955.0,0.002]
[1761418929426,4.62763626,3955.1,3955.0,0.4433]
[1761418929728,11.85766112,3955.1,3955.0,0.4433]
[1761418934959,11.85766112,3955.1,3955.0,0.002]
[1761418935464,12.53858343,3955.1,3955.0,0.002]
[1761418935768,11.85766112,3955.1,3955.0,0.002]
[1761418936346,12.53840843,3955.1,3955.0,0.002]
[1761418937357,12.66480843,3955.1,3955.0,0.002]
[1761418939464,9.47780843,3955.1,3955.0,0.4433]
[1761418939673,5.26499963,3955.1,3955.0,0.4433]
[1761418939967,7.94203626,3955.1,3955.0,0.4433]
[1761418940165,2.65478107,3955.1,3955.0,0.4433]
[1761418940367,5.84278107,3955.1,3955.0,0.4433]
[1761418941366,2.65478107,3955.1,3955.0,0.4433]
[1761418945287,0.011,3955.9,3955.0,0.4433]
[1761418945598,2.52838107,3955.1,3955.0,0.4433]
[1761418948356,2.52831875,3955.2,3955.0,0.4433]
[1761418950653,2.52817428,3955.5,3955.1,0.1264]
[1761418950991,2.52817428,3955.5,3955.2,0.4413]
[1761418951155,2.52807088,3955.6,3955.2,0.4413]
[1761418951854,0.1264,3955.7,3955.2,0.4413]
[1761418952177,0.1374,3955.9,3955.4,0.1264]
[1761418952492,2.52801097,3955.7,3955.4,0.1264]
[1761418952790,2.52801097,3955.7,3955.5,0.4413]
[1761418953096,0.1374,3955.9,3955.5,0.4413]
[1761418953389,0.011,3955.9,3955.5,0.4413]
[1761418953558,2.5280011,3955.7,3955.5,0.4413]
[1761418953759,2.5280011,3955.7,3955.5,0.81667]
[1761418954385,2.5280011,3955.7,3955.6,0.4413]
[1761418963613,0.011,3955.9,3955.6,0.4413]
[1761418963917,2.53887498,3955.9,3955.6,0.4413]
[1761418964215,2.53890228,3955.9,3955.6,0.4413]
[1761418964412,2.53890228,3955.9,3955.6,0.93043]
[1761418964413,0.001,3955.7,3955.6,0.93043]
[1761418966824,0.001,3955.7,3955.6,1.03159376]
[1761418971408,0.001,3955.7,3955.6,3.55965524]
[1761418971609,0.001,3955.7,3955.6,1.56375437]
[1761418971923,0.001,3955.7,3955.6,4.06653524]
[1761418985608,0.001,3955.7,3955.6,7.24953524]
[1761418986418,0.001,3955.7,3955.6,7.14837148]
[1761418987328,0.001,3955.7,3955.6,3.96537148]
[1761418987526,0.001,3955.7,3955.6,7.14837148]
[1761418987925,0.001,3955.7,3955.6,0.1264]
[1761418988151,0.001,3955.7,3955.6,4.8646]
[1761418988618,0.001,3955.7,3955.6,5.3051]
[1761418989118,0.001,3955.7,3955.6,4.8646]
[1761418991517,0.001,3955.7,3955.6,5.3051]
[1761418993349,0.001,3955.7,3955.6,4.8646]
[1761419000166,0.001,3955.7,3955.6,3.3094]
[1761419000343,0.001,3955.7,3955.1,1.5572]
[1761419000532,2.52811316,3955.6,3955.2,3.183]
[1761419000734,2.52818545,3955.5,3955.2,3.183]
[1761419000964,2.63698545,3955.5,3955.2,3.183]
[1761419001755,2.52818545,3955.5,3955.2,3.183]
[1761419001939,2.52820594,3955.4,3955.2,3.183]
[1761419002140,2.63700594,3955.4,3955.2,3.183]
[1761419002862,2.52831715,3955.2,3955.1,0.002]
[1761419003360,2.63711715,3955.2,3955.1,0.002]
[1761419007280,2.52831715,3955.2,3955.1,0.002]
[1761419007580,2.63711715,3955.2,3955.1,0.002]
[1761419011352,2.52831715,3955.2,3955.1,0.002]
[1761419011988,3.41080747,3955.2,3955.1,0.002]
[1761419016360,3.51960747,3955.2,3955.1,0.002]
[1761419017192,7.05276095,3955.2,3955.1,0.002]
[1761419020798,6.94396095,3955.2,3955.1,0.002]
[1761419021098,7.05276095,3955.2,3955.1,0.002]
[1761419023677,7.05276095,3955.2,3954.6,0.002]
[1761419023678,2.52879237,3954.5,3954.2,0.45688075]
[1761419024081,2.52871735,3954.6,3954.2,0.45688075]
[1761419024394,2.52874122,3954.6,3954.2,0.45688075]
[1761419025903,2.52864843,3954.7,3954.2,0.45688075]
[1761419026085,0.88249032,3955.2,3954.2,0.45688075]
[1761419026286,2.52847849,3955.0,3954.2,2.98577398]
[1761419026608,2.52847849,3955.0,3954.2,0.45688075]
[1761419026810,2.52847849,3955.0,3954.3,0.4597]
[1761419027807,2.52847849,3955.0,3954.3,2.98858065]
[1761419028607,2.52847849,3955.0,3954.4,0.4597]
[1761419029308,2.52847849,3955.0,3954.4,3.6427]
[1761419029515,2.52847849,3955.0,3954.5,0.4597]
[1761419033616,2.52852382,3954.9,3954.5,0.5861]
[1761419033814,2.5285921,3954.8,3954.5,0.1264]
[1761419034122,2.5285921,3954.8,3954.5,3.3094]
[1761419034426,2.5285921,3954.8,3954.5,3.7691]
[1761419034625,2.5285921,3954.8,3954.6,0.4597]
[1761419034981,2.52863721,3954.7,3954.5,0.1264]
[1761419035385,2.52863721,3954.7,3954.5,0.5861]
[1761419035582,2.52846179,3955.0,3954.5,0.5881]
[1761419035886,2.52863681,3954.7,3954.5,0.002]
[1761419036591,2.52870075,3954.6,3954.5,0.002]
[1761419037018,2.52865494,3954.7,3954.5,0.002]
[1761419038124,2.52859357,3954.8,3954.5,0.002]
[1761419038530,2.52865175,3954.7,3954.5,0.002]
[1761419039318,2.52859398,3954.8,3954.5,0.002]
[1761419041790,2.65495235,3954.9,3954.5,0.002]
[1761419042022,2.5285827,3954.8,3954.5,0.002]
[1761419042796,0.44314618,3955.0,3954.6,0.4621]
[1761419042797,0.001,3955.0,3954.6,0.4621]
[1761419043032,0.001,3955.0,3954.8,4.08371698]
[1761419043240,0.001,3955.0,3954.9,0.02528508]
[1761419043530,0.001,3955.0,3954.9,0.4621]
[1761419044194,0.001,3955.0,3954.8,1.5552]
[1761419044394,0.001,3955.0,3954.9,5.2003]
[1761419045240,0.001,3955.0,3954.9,5.98582708]
[1761419046356,0.001,3955.0,3954.9,5.2003]
[1761419047238,0.001,3955.0,3954.9,7.72880893]
[1761419048154,0.001,3955.0,3954.9,5.2003]
[1761419048524,0.001,3955.0,3954.9,7.85520893]
[1761419048923,0.001,3955.0,3954.9,5.3267]
[1761419051454,0.001,3955.0,3954.9,4.7382]
[1761419052028,0.001,3955.0,3954.9,5.185]
[1761419058568,0.001,3955.0,3954.8,0.1264]
[1761419058755,0.1274,3955.0,3954.9,3.182]
[1761419061384,0.239,3955.0,3954.8,3.182]
[1761419061589,2.52850893,3954.9,3954.8,3.182]
[1761419063308,2.65585743,3955.0,3954.8,3.182]
[1761419063486,2.52850893,3954.9,3954.8,3.182]
[1761419064077,2.65585885,3955.0,3954.8,3.182]
[1761419067009,2.52863681,3954.7,3954.6,0.002]
[1761419067219,0.1264,3954.7,3954.6,0.002]
[1761419076343,2.65503681,3954.7,3954.6,0.002]
[1761419080039,2.65503681,3954.7,3954.4,3.136]
[1761419080838,0.1264,3954.7,3954.4,3.136]
[1761419081208,2.65508341,3954.7,3954.4,3.136]
[1761419081639,0.1264,3954.7,3954.4,3.136]
[1761419081932,2.65504087,3954.7,3954.4,3.136]
[1761419082349,2.65504087,3954.7,3954.4,3.6075]
[1761419083416,0.1264,3954.7,3954.4,3.6075]
[1761419084155,2.65505107,3954.7,3954.4,3.6075]
[1761419085554,2.65505107,3954.7,3954.4,3.136]
[1761419085872,2.65505107,3954.7,3954.5,0.4715]
[1761419086720,2.65505107,3954.7,3954.4,3.182]
[1761419086920,2.65505107,3954.7,3954.4,3.6535]
[1761419087250,2.65505107,3954.7,3954.5,0.4715]
[1761419089657,2.65505107,3954.7,3954.5,0.4735]
[1761419089985,2.65605107,3954.7,3954.5,0.4735]
[1761419090960,0.1274,3954.7,3954.5,0.4735]
[1761419091165,2.52870075,3954.6,3954.5,0.4735]
[1761419091559,0.1274,3954.7,3954.5,0.4735]
[1761419091560,2.65605312,3954.7,3954.5,0.4735]
[1761419091872,0.1274,3954.7,3954.5,0.4735]
[1761419092073,0.1274,3954.7,3954.6,0.4715]
[1761419093414,0.001,3954.7,3954.6,0.4715]
[1761419093578,0.001,3954.7,3954.6,3.49215075]
[1761419097987,0.001,3954.7,3954.6,5.04735075]
[1761419104417,0.001,3954.7,3954.6,5.55423075]
[1761419104616,0.001,3954.7,3954.6,2.51865]
[1761419104916,0.001,3954.7,3954.6,8.22935075]
[1761419105805,0.001,3954.7,3954.6,5.70065]
[1761419106434,0.001,3954.7,3954.6,8.22935075]
[1761419106597,2.48127532,3955.3,3954.7,1.5552]
[1761419106786,2.48127532,3955.3,3954.7,2.0056]
[1761419107883,2.52832347,3955.2,3954.7,2.0056]
[1761419108284,2.52832347,3955.2,3954.8,0.4403]
[1761419108524,2.528267,3955.3,3954.8,0.4403]
[1761419108688,2.528267,3955.3,3954.9,3.181]
[1761419109524,2.52831994,3955.2,3954.9,3.181]
[1761419110023,0.001,3955.1,3954.9,3.181]
[1761419110704,0.001,3955.1,3954.5,0.002]
[1761419110908,2.52849682,3955.0,3954.6,3.181]
[1761419111214,2.52938789,3955.1,3954.6,3.181]
[1761419111406,2.52938789,3955.1,3954.7,0.4403]
[1761419111604,0.001,3955.1,3954.7,0.4403]
[1761419111812,2.52848974,3955.0,3954.6,3.181]
[1761419112114,2.52940114,3955.1,3954.6,3.6213]
[1761419114519,2.52845271,3955.0,3954.6,3.6213]
[1761419115021,2.5293943,3955.1,3954.6,3.6213]
[1761419116604,0.1264,3955.0,3954.6,3.6213]
[1761419116995,0.1264,3955.0,3954.7,0.4403]
[1761419117198,0.0764,3955.0,3954.7,0.4403]
[1761419117903,0.0764,3955.0,3954.6,3.181]
[1761419118123,0.0764,3955.0,3954.8,0.4403]
[1761419118320,0.001,3955.1,3954.9,3.181]
[1761419119105,2.52939044,3955.1,3954.9,3.181]
[1761419120800,0.001,3955.1,3954.9,3.6213]
[1761419122899,2.52939289,3955.1,3954.9,3.181]
[1761419124196,2.528445,3955.0,3954.9,3.181]
[1761419124808,2.52938694,3955.1,3954.9,3.181]
[1761419126397,2.52938694,3955.1,3954.9,3.6213]
[1761419127320,2.52938694,3955.1,3954.9,3.6233]
[1761419127568,2.52938694,3955.1,3954.9,3.183]
[1761419128466,2.528445,3955.0,3954.9,3.183]
[1761419129459,2.528445,3955.0,3954.9,0.002]
[1761419129624,3.17326397,3955.0,3954.9,0.002]
[1761419131623,3.28486397,3955.0,3954.9,0.002]
[1761419134788,3.17326397,3955.0,3954.9,0.002]
[1761419135142,3.70388314,3955.0,3954.9,0.002]
[1761419135351,3.80510194,3955.0,3954.9,0.002]
[1761419141481,3.25968277,3955.0,3954.9,0.002]
[1761419141712,3.21106884,3955.5,3954.9,0.002]
[1761419141713,0.001,3956.5,3955.8,0.2265]
[1761419141848,0.001,3957.2,3956.5,0.2265]
[1761419142048,0.001,3957.2,3956.8,4.58937478]
[1761419142299,0.001,3957.2,3956.8,6.40098136]
[1761419142498,0.001,3957.2,3956.8,9.8586701]
[1761419143510,0.001,3957.2,3956.8,9.18646874]
[1761419143801,0.011,3956.9,3956.8,9.18646874]
[1761419144673,0.011,3956.9,3956.8,6.15229396]
[1761419144996,0.011,3956.9,3956.8,8.57846258]
[1761419145195,0.011,3956.9,3956.8,8.70486258]
[1761419151512,0.011,3956.9,3956.8,9.21174258]
[1761419151914,0.011,3956.9,3956.8,9.31287104]
[1761419155229,0.001,3957.2,3957.1,3.03398318]
[1761419155388,0.001,3957.3,3957.2,4.58911932]
[1761419155589,0.001,3957.3,3957.2,12.46609344]
[1761419155889,0.001,3957.3,3957.2,12.56719379]
[1761419156291,0.001,3957.3,3957.2,11.89499243]
[1761419156511,0.001,3957.3,3957.2,13.64426981]
[1761419160842,0.001,3957.3,3957.2,10.43526981]
[1761419161141,0.001,3957.3,3957.2,10.10919705]
[1761419165250,0.001,3957.3,3957.2,10.23559705]
[1761419166316,0.001,3957.3,3957.2,10.90779841]
[1761419166718,0.001,3957.3,3957.2,10.40091841]
[1761419167034,0.001,3957.3,3957.2,9.6276167]
[1761419168256,0.001,3957.3,3957.2,10.52388519]
[1761419169257,0.001,3957.3,3957.2,9.6276167]
[1761419170828,0.001,3957.3,3957.2,9.1649167]
[1761419171152,0.001,3957.3,3957.2,8.75867955]
[1761419171342,0.001,3957.3,3957.2,7.41563932]
[1761419185762,0.001,3957.3,3957.2,8.76532855]
[1761419192385,0.001,3957.3,3957.2,7.84323932]
[1761419192755,0.001,3957.3,3957.2,9.19292855]
[1761419193462,0.001,3957.3,3957.2,8.76532855]
[1761419194660,0.001,3957.3,3957.2,7.41563932]
[1761419195054,0.001,3957.3,3957.2,7.84323932]
[1761419195982,0.1005,3957.3,3957.1,0.002]
[1761419196356,0.26274617,3957.2,3957.1,0.002]
[1761419196755,0.36224617,3957.2,3957.1,0.002]
[1761419202561,2.88928549,3957.2,3957.1,0.002]
[1761419207194,2.52703932,3957.2,3957.1,0.002]
[1761419207366,0.001,3957.3,3957.1,0.002]